Cogmind - Beta 11.1 @@@ ROGUE MODE // 2022.07.24 @ 20:55:53 Player: gorb Result: Destroyed by Y-45 Defender with Heavy Assault Rifle Performance ------------- Evolutions (2) 1000 Regions Visited (4) 800 Robots Destroyed (8) 40 Value Destroyed (252) 252 Prototype IDs (0) 0 Alien Tech Used (0) 0 Bonus (0) 0 TOTAL SCORE: 2092 Bonus ------- None Cogmind --------- Core Integrity 0/550 Matter 300/300 Energy 100/100 System Corruption 0% Temperature Cool (9) Movement Core (1350) Ox26 Location -8/Materials Parts ------- > --- POWER (1) -------- (None) > --- PROPULSION (4) --- (None) > --- UTILITY (4) ------ Heat Sink Huge Storage Unit > --- WEAPON (2) ------- (None) > --- INVENTORY (25) --- Ion Engine Ion Engine Wheel Small Storage Unit Structural Scanner Light Armor Plating Small Laser Particle Cannon Light Assault Rifle Peak State ------------ > --- POWER ------------ Improved Ion Engine > --- PROPULSION ------- Wheel Compact Wheel Compact Wheel Compact Wheel > --- UTILITY ---------- Heat Sink Huge Storage Unit Improved Terrain Scanner Propulsion Shielding > --- WEAPON ----------- EM Pulse Gun Heavy Assault Rifle > --- INVENTORY -------- Ion Engine Ion Engine Flight Unit Small Storage Unit Structural Scanner Light Armor Plating Small Laser Particle Cannon Light Assault Rifle [Rating: 16] Favorites ----------- Power Ion Engine Engine Ion Engine Propulsion Compact Wheel Wheel Compact Wheel Flight Unit Flight Unit Utility Huge Storage Unit Device Heat Sink Storage Huge Storage Unit Protection Propulsion Shielding Weapon EM Pulse Gun Energy Gun EM Pulse Gun Energy Cannon Particle Cannon Ballistic Gun Heavy Assault Rifle Launcher Grenade Launcher Slashing Weapon Mining Claw Build | -11 -10 -9 -9 -8 ------- Run | Scr Mat Mat Min Mat Slots Evolved 4 | . . 2 . 2 Power . | . . . . . Propulsion 2 | . . 1 . 1 Utility 2 | . . 1 . 1 Weapon . | . . . . . Parts Attached 30 | 5 13 5 4 3 Power 2 | 1 . . 1 . Engine 2 | 1 . . 1 . Core . | . . . . . Reactor . | . . . . . Propulsion 11 | 2 6 1 . 2 Treads . | . . . . . Leg . | . . . . . Wheel 8 | 2 4 1 . 1 Hover . | . . . . . Flight 3 | . 2 . . 1 Utility 9 | 1 4 2 1 1 Device 4 | . 1 1 1 1 Storage 2 | 1 1 . . . Processor . | . . . . . Hackware . | . . . . . Protection 3 | . 2 1 . . Artifact . | . . . . . Weapon 8 | 1 3 2 2 . Energy Gun 2 | . 1 . 1 . Energy Cannon 1 | . . 1 . . Ballistic Gun 3 | 1 . 1 1 . Ballistic Cannon . | . . . . . Launcher 1 | . 1 . . . Special Weapon . | . . . . . Impact Weapon . | . . . . . Slashing Weapon 1 | . 1 . . . Piercing Weapon . | . . . . . Special Melee Weapon . | . . . . . Unidentified Prototypes . | . . . . . Parts Lost 12 | . 2 1 . 9 Power 1 | . . . . 1 Propulsion 5 | . 1 . . 4 Utility 2 | . . . . 2 Weapon 4 | . 1 1 . 2 Highest Loss Streak 9 | . 2 1 . 9 To Critical Strikes . | . . . . . Average Slot Usage (%) 93 | . 91 97 96 85 Engine 11 | . 14 11 11 7 Wheel 30 | . 26 33 33 29 Device 7 | . 3 5 11 17 Storage 11 | . 14 11 11 9 Protection 12 | . 10 16 11 7 Energy Gun 4 | . 7 2 3 6 Energy Cannon 3 | . . 5 7 . Ballistic Gun 5 | . 6 2 7 5 Launcher 4 | . 4 8 . . Naked Turns . | . . . . . Heaviest Build 96 | 11 93 96 96 95 Greatest Support 58 | 26 26 42 42 58 Greatest Overweight (x) 27 | . 3 2 2 27 Average Overweight (x) 1 | . . 2 2 1 Largest Inventory Capacity 25 | 8 25 25 25 25 Average Capacity 19 | 7 9 25 25 25 Most Carried 11 | 6 8 9 11 10 Average Carried 7 | 2 6 7 9 9 Final Capacity 25 | 8 25 25 25 25 Final Carried 11 | 6 8 9 11 9 Class Distribution -------------------- 77% | Mutant 22% | Scavenger-Mutant Dominant Class ---------------- Mutant | -10/Materials Mutant | -9/Materials Scavenger-Mutant | -9/Mines Scavenger-Mutant | -8/Materials Resources | -11 -10 -9 -9 -8 ----------- Run | Scr Mat Mat Min Mat Matter Collected 523 | 259 . 33 231 . Remotely . | . . . . . Salvage Created 348 | 69 . 33 246 . Parts 24 | 9 . . 15 . Haulers Intercepted . | . . . . . Recyclers Shooed 1 | 1 . . . . Parts Field Recycled . | . . . . . Retrieved Matter . | . . . . . Parts Self-Destructed . | . . . . . Prevented . | . . . . . Kills | -11 -10 -9 -9 -8 ------- Run | Scr Mat Mat Min Mat Combat Hostiles Destroyed 6 | . . 1 5 . Guns 3 | . . . 3 . Cannons 3 | . . 1 2 . Classes Destroyed 5 | 2 . 1 2 . Tunneler 1 | 1 . . . . Recycler 1 | 1 . . . . Grunt 2 | . . . 2 . Brawler 1 | . . . 1 . Sentry 3 | . . 1 2 . Best Kill Streak 5 | 2 . 1 5 . Combat Bots Only 5 | . . 1 5 . Max Kills in Single Turn 1 | 1 . 1 1 . Gunslinging . | . . . . . Exploded . | . . . . . Melee . | . . . . . Uniques/NPCs Destroyed . | . . . . . Combat | -11 -10 -9 -9 -8 -------- Run | Scr Mat Mat Min Mat Damage Taken 1780 | . 280 155 243 1102 Core 664 | . 14 18 79 553 Absorbed by Shields . | . . . . . Redirected to Shielding 53 | . . 5 . 48 Core Remaining (%) 89 | 100 94 . 75 . Volleys Fired 37 | 9 3 16 9 . Largest 2 | 1 1 1 2 . Hottest 91 | 20 30 68 91 . Shots Fired 45 | 9 3 16 17 . Gun 22 | 9 2 3 8 . Cannon 19 | . . 10 9 . Launcher 4 | . 1 3 . . Special . | . . . . . Kinetic 22 | 9 2 3 8 . Thermal 19 | . . 10 9 . Explosive 4 | . 1 3 . . Electromagnetic . | . . . . . Robot Hit Streak 9 | 2 . 8 9 . Robot Miss Streak 2 | 1 1 2 2 . Penetration Max . | . . . . . Secondary Targets . | . . . . . Shots Hit Robots 29 | 5 . 13 11 . Core Hits 11 | 3 . 2 6 . Critical Kills . | . . . . . Critical Parts Destroyed . | . . . . . Critical Strikes . | . . . . . Melee Attacks 9 | . 9 . . . Impact . | . . . . . Slashing 9 | . 9 . . . Piercing . | . . . . . Sneak Attacks . | . . . . . Combat Hostiles . | . . . . . Follow-up Attacks . | . . . . . Damage Inflicted 536 | 44 . 276 216 . Guns 172 | 44 . 14 114 . Cannons 288 | . . 186 102 . Explosions 62 | . . 62 . . Melee . | . . . . . Ramming 14 | . . 14 . . Kinetic 172 | 44 . 14 114 . Thermal 288 | . . 186 102 . Explosive 62 | . . 62 . . Electromagnetic . | . . . . . Impact . | . . . . . Slashing . | . . . . . Piercing . | . . . . . Highest Corruption 8 | . 8 . . . Average Corruption 8 | . 8 . . . Corruption Purged . | . . . . . Corruption Blocked . | . . . . . Effects 5 | . 5 . . . Message Errors 2 | . 2 . . . Heat Flow Errors 1 | . 1 . . . Energy Discharges 1 | . 1 . . . Data Loss (minor) 1 | . 1 . . . Overload Shots . | . . . . . Overflow Damage . | . . . . . Projectiles . | . . . . . Explosions . | . . . . . Melee . | . . . . . Knockbacks . | . . . . . Impact . | . . . . . Kinetic . | . . . . . Secondary . | . . . . . Self-Inflicted Damage 36 | . 29 7 . . Shots 1 | . 1 . . . Rammed 3 | . . 2 . 1 Targets Rammed 3 | . . 2 . 1 Kicked . | . . . . . Crushed . | . . . . . Highest Temperature 250 | . 156 189 250 . Average Temperature 109 | . 72 99 133 . Received Heat Transfer 744 | . . 45 96 603 Effects 2 | . . . 2 . Interference 2 | . . . 2 . Siege Activations . | . . . . . Robots Corrupted . | . . . . . Combat Hostiles . | . . . . . Parts Fried . | . . . . . Impact Corruptions . | . . . . . Robots Melted . | . . . . . Combat Hostiles . | . . . . . Parts Melted 3 | . . 3 . . Heat Transferred 518 | . . 333 185 . Parts Sabotaged . | . . . . . Parts Stolen . | . . . . . Parts Stripped . | . . . . . Power Chain Reactions . | . . . . . Missiles Intercepted . | . . . . . Alert | -11 -10 -9 -9 -8 ------- Run | Scr Mat Mat Min Mat Peak Influence 185 | 10 60 156 185 87 Initial 72 | . 6 16 60 72 Average 65 | 2 30 67 142 67 Maximum Alert Level . | . . . . . Low Security (%) 100 | 100 100 100 100 100 Level 1 . | . . . . . Level 2 . | . . . . . Level 3 . | . . . . . Level 4 . | . . . . . Level 5 . | . . . . . High Security . | . . . . . Max Security . | . . . . . Squads Dispatched 2 | . . 2 . . Investigation . | . . . . . Extermination . | . . . . . Reinforcement 2 | . . 2 . . Assault . | . . . . . Garrison . | . . . . . Intercept . | . . . . . Searches Triggered . | . . . . . Construction Impeded . | . . . . . Haulers Reinforced . | . . . . . Active Scanning Responses . | . . . . . Cargo Convoy Interrupts . | . . . . . Stealth | -11 -10 -9 -9 -8 --------- Run | Scr Mat Mat Min Mat Distress Signals . | . . . . . Communications Jammed . | . . . . . Distress Signals . | . . . . . Times Spotted 18 | . 3 6 5 4 Peak Tracking Total 5 | . 3 2 5 4 Tactical Retreats 1 | . 1 . . . Traps | -11 -10 -9 -9 -8 ------- Run | Scr Mat Mat Min Mat Traps Triggered . | . . . . . Indirectly . | . . . . . Trap Hack Attempts . | . . . . . Triggered . | . . . . . Disarmed . | . . . . . Reprogrammed . | . . . . . Reused . | . . . . . Traps Extracted . | . . . . . Installed . | . . . . . Triggered . | . . . . . Machines | -11 -10 -9 -9 -8 ---------- Run | Scr Mat Mat Min Mat Machines Disabled . | . . . . . Max in Single Turn . | . . . . . Machines Sabotaged . | . . . . . Garrisons Compromised . | . . . . . Overloaded Fab Kills . | . . . . . Hacking | -11 -10 -9 -9 -8 --------- Run | Scr Mat Mat Min Mat Machines Accessed . | . . . . . Terminals . | . . . . . Fabricators . | . . . . . Repair Stations . | . . . . . Recycling Units . | . . . . . Scanalyzers . | . . . . . Garrison Access . | . . . . . Total Hacks . | . . . . . Successful . | . . . . . Failed . | . . . . . Catastrophic . | . . . . . Database Lockouts . | . . . . . Manual . | . . . . . Terminals . | . . . . . Fabricators . | . . . . . Repair Stations . | . . . . . Recycling Units . | . . . . . Scanalyzers . | . . . . . Garrison Access . | . . . . . Terminal Hacks . | . . . . . Fabricator Hacks . | . . . . . Repair Station Hacks . | . . . . . Recycling Unit Hacks . | . . . . . Scanalyzer . | . . . . . Garrison Access Hacks . | . . . . . Unauthorized Hacks . | . . . . . Terminals . | . . . . . Fabricators . | . . . . . Repair Stations . | . . . . . Recycling Units . | . . . . . Scanalyzers . | . . . . . Garrison Access . | . . . . . Data Cores Recovered . | . . . . . Used . | . . . . . Hacking Detections . | . . . . . Full Trace Events . | . . . . . Feedback Events . | . . . . . Feedback Blocked . | . . . . . Robot Schematics Acquired . | . . . . . Robots Built . | . . . . . Authchips . | . . . . . Time . | . . . . . Total Robot Build Rating . | . . . . . Part Schematics Acquired . | . . . . . Parts Built . | . . . . . Authchips . | . . . . . Time . | . . . . . Total Part Build Rating . | . . . . . Parts Repaired . | . . . . . Time . | . . . . . Parts Recycled . | . . . . . Recycled Matter . | . . . . . Retrieved Matter . | . . . . . Retrieved Components . | . . . . . Parts Scanalyzed . | . . . . . Part Schematics Acquired . | . . . . . Parts Damaged . | . . . . . Bothacking | -11 -10 -9 -9 -8 ------------ Run | Scr Mat Mat Min Mat Used RIF Installer . | . . . . . Robots Hacked . | . . . . . Non-combat . | . . . . . Combat . | . . . . . Robot Hacks Applied . | . . . . . Relay Couplers Released . | . . . . . Fabnet Peak Effective % . | . . . . . Robots Rewired . | . . . . . Allies Hacked . | . . . . . Hacks Repelled . | . . . . . Allies | -11 -10 -9 -9 -8 -------- Run | Scr Mat Mat Min Mat Total Allies . | . . . . . Largest Group . | . . . . . Highest-Rated Group . | . . . . . Highest-Rated Ally . | . . . . . Total Orders . | . . . . . Ally Attacks . | . . . . . Total Damage . | . . . . . Kills . | . . . . . Allies Corrupted . | . . . . . Allies Melted . | . . . . . Intel | -11 -10 -9 -9 -8 ------- Run | Scr Mat Mat Min Mat Robot Analysis Total . | . . . . . Derelict Logs Recovered . | . . . . . Drone Launches . | . . . . . Drone Recoveries . | . . . . . Exploration | -11 -10 -9 -9 -8 ------------- Run | Scr Mat Mat Min Mat Turns Passed 1024 | 81 272 329 183 159 Spaces Moved 762 | 57 246 232 121 106 Core 6 | 5 . . . 1 Treads . | . . . . . Legs . | . . . . . Wheels 756 | 52 246 232 121 105 Hover . | . . . . . Flight . | . . . . . Fastest Speed 50 | 50 80 123 123 110 Average Speed 108 | 86 86 123 123 122 Slowest Speed 1400 | 90 135 123 123 1400 Overloaded Moves . | . . . . . Propulsion Burnouts . | . . . . . Robots Hopped . | . . . . . Cave-ins Triggered 1 | . 1 . . . Exploration Rate (%) 20 | 4 37 19 32 8 Regions Visited 4 Branch Regions 1 Pre-discovered Areas . | . . . . . Known Exits Taken . | . . . . . Unknown Exits Taken 4 | 1 1 1 1 . Scrap Searched . | . . . . . Spaces Dug 14 | . 14 . . . Terrain Destroyed 42 | . 14 28 . . Melee 6 | . 6 . . . Projectile . | . . . . . AOE 36 | . 8 28 . . Terrain Rammed . | . . . . . Walls Destroyed . | . . . . . Machines Disabled . | . . . . . Actions | -11 -10 -9 -9 -8 --------- Run | Scr Mat Mat Min Mat Total 872 | 81 281 257 136 117 Wait 7 | . . . . 7 Move 758 | 56 245 231 120 106 Hop . | . . . . . Pick Up 25 | 11 8 3 3 . Fast Attach 1 | . 1 . . . Attach 14 | 5 4 2 1 2 Detach . | . . . . . Swap 15 | . 8 3 3 1 Drop 3 | . 3 . . . Fire 37 | 9 3 16 9 . Melee 9 | . 9 . . . Ram 3 | . . 2 . 1 Kick . | . . . . . Crush . | . . . . . Escape Stasis . | . . . . . Rewire . | . . . . . Trap . | . . . . . Miscellaneous . | . . . . . Route ------- -11/Scrapyard -10/Materials -9/Materials -9/Mines -8/Materials History --------- Turn | Location | Event 20 | -11/Scrapyard | Discovered new exit (range 15) 82 | -11/Scrapyard | Entered Materials 199 | -10/Materials | Discovered new exit (range 11) 264 | -10/Materials | Crushed by falling debris 312 | -10/Materials | Build established: Mutant 354 | -10/Materials | Entered another Materials area 354 | -9/Materials | Evolved 2 slots: Propulsion x1, Utility x1 552 | -9/Materials | Discovered new exit (range 7) 683 | -9/Materials | Entered Mines 853 | -9/Mines | Discovered new exit (range 11) 854 | -9/Mines | Assembled infested the area 866 | -9/Mines | Entered Materials 866 | -8/Materials | Evolved 2 slots: Propulsion x1, Utility x1 1011 | -8/Materials | Core integrity fell below 50% 1022 | -8/Materials | Core integrity fell below 20% 1025 | -8/Materials | Destroyed by Y-45 Defender with Heavy Assault Rifle Last Messages --------------- EXIT=FOUND ALERT: Infestation in the mines, dispatching Demolisher response squad. PARAMETERS=PROPULSION+1,UTILITY+1 LOCATION=UNKNOWN GOAL=ESCAPE T-07 Excavator is excavating. Critical hit (Burn: +37). Hvy. Assault Rifle destroyed. Slammed into G-47 Trooper. EM Pulse Gun destroyed. Com. Wheel destroyed. Flight Unit destroyed. Critical hit (Burn: +37). Imp. Ion Engine destroyed. Propulsion Shielding destroyed. Com. Wheel destroyed. Critical hit (Burn: +37). Y-45 Defender suffers critical hit (Burn). Critical hit (Burn: +37). Imp. Terrain Scanner destroyed. Map ----- +----------------------------------------------------+ | ?????????????? ????#???????#?# #???? | | ????????????????????????#????# #???? | | ?????????????????????????????# #???? | | ???????????????????#?????????# #??## | | ?????????????????????????????# #???? | | ????????????????????########## #???? | | ??#??????????????#??#= # #???# | | ????????????????????# """ # #???? | | ??????????????????#?# """ ^# #???? | | ????????????? ??????# """ + ##??? | | ????????????????????# # #???? | | ???????? ???????????# """ # ##?#? | | ??????????##+######## """ # #???? | | ?????#????# + """ # #???? | | ??????????# ####### # #???? | | ??????????# #??#?########### #???? | | ????????? #??????????????# #?#?? | | ????????### ##?#??#???##???# #???? | | ??????????# ##?????????????# #???? | | ??????????# ##????????????## ##??? | | ??#??#???? ############## #??? | | ?????????# ##?? | | ???????? T #??? | | ?????????# #??# | | ?????????# ???#######g### #??? | | ?????????### ##?????## Y@g #######??? | | ???????????? ???????## """ #??? ? ??? | | ???????????? ??? ??"?# """ #????????? | | ???????????? ??? ????#/ """ #????? ??? | | ?????????????????????# g #????? ??? | | ????????????????? ???# #????????? | | ?????????????????????########?????#??? | | ????????????????????#???#??????????#?? | | ?????????????????????#?????????????#?? | | ?????????????????????????????????????? | | ???????????????????????????????????#?? | | ???????????????????? ?????#??????????? | | ????????????????? ? ?????????????#???? | | ?????????????????????????????????????? | | ?????????????????????????????????????? | | ?????????????????????????????????????? | | ?????????????????????????????????????? | | ?????????????????????????????????????? | | ???????????????????????#?????????????? | | ?????????????????????????????????????? | | ?????????????????????????????????????? | | ?????????????????????????????????????? | | ?????????????????????????????????????? | | ?????????????????????????????????????? | | ?????????????????????????????????????? | +----------------------------------------------------+ Best States ------------- Heat Dissipation 41 Energy Generation 12 Energy Capacity 265 Matter Stores 300 Matter Capacity 300 Sight Range 16 Terrain Scan Range 16 Terrain Scan Density 10 Armor Coverage 150 Propulsion Shielding 33 Evasion (%) 44 Item Schematics ----------------- None Robot Schematics ------------------ None Fabricated ------------ Nothing Alien Tech Used ----------------- None Achievements -------------- None Challenges ------------ None Game ------ Seed DamperFlakAutocannon Manual? 0 Play Time 00:20:26 Cumulative 3.1 hours Start 2022.07.24 @ 20:28:41 End 2022.07.24 @ 20:55:53 Sessions 1 Manual Loads 0 Difficulty Rogue Special Mode None Game No. 7 Rogue 7 Adventurer 0 Explorer 0 Win Type - Total 0 Types 0/0/0/0/0/0/0/0/0 Lore% 1 Gallery% 6 Achievement% 7 Wizard Run 0 Options --------- ASCII 0 Keyboard 0 Movement Mouse Keybinds 0 Fullscreen 1 Font 18/Smallcaps Map View 76x50 Tactical HUD 0 Map Filters NONE Filters NONE Steam 1 RUN: 1dabf1b1-acb3-4b7d-8bdb-51c20d4e4f89